Workbook

Sheet 例題25 タンパク質の濃度境界層の厚さ
A1: 微分方程式数 | B1: 5 | N1: 定数 | S1: DAB= | T1: 6.81e-11 | U1: m2/s | V1: 溶質：タンパク質(牛アルブミン)
A2: η= | B2: f= | C2: f'= | D2: f''= | E2: θ= | F2: θ'= | N2: Sc= | O2: 14684 | S2: Sc=μ/ρDAB | T2: =T6/T5/T1 -> 14684.28781
A3: 7.999986637 | B3: 6.279238251 | C3: 1.000001623 | D3: 1.224071586e-05 | E3: 1.000001265 | F3: -3.105573823e-10 | S3: x= | T3: 0.1 | U3: m
B4: f'= | C4: f''= | D4: f'''= | E4: θ'= | F4: θ''= | S4: U∞= | T4: 1 | U4: m/s
A5: 微分方程式→ | B5: =C3 -> 1.000001623 | C5: =D3 -> 1.224071586e-05 | D5: =-(1/2)*B3*D3 -> -3.843118562e-05 | E5: =F3 -> -3.105573823e-10 | F5: =-(O2/2)*B3*F3 -> 1.431736838e-05 | S5: ρ= | T5: 1000 | U5: kg/m3 | V5: （水）
S6: μ= | T6: 0.001 | U6: Pa-s
A7: 積分区間η=[a, | B7: 0 | S7: ν= | T7: =T6/T5 -> 1e-06
A8: b] | B8: 8 | E8: Sc= | F8: 14684 | S8: (U∞/(νx))^0.5 | T8: =(T4/T7/T3)^0.5 -> 3162.27766
A9: 区間分割数 | B9: 50 | S9: cAs= | T9: 100
A10: 計算結果 | S10: cA∞＝ | T10: 0
A11: η | B11: f | C11: f' | D11: f'' | E11: θ | F11: θ' | T11: y[mm] | U11: u[m/s] | V11: ω
A12: 0 | B12: 0 | C12: 0 | D12: 0.33206 | E12: 0 | F12: 8.2944 | T12: =1000*C12/$T$8 -> 0 | U12: =C12/$T$4 -> 0 | V12: =$T$9-E12*($T$9-$T$10) -> 100
A13: 0.008762672474 | B13: 1.27485187e-05 | C13: 0.002909733008 | D13: 0.3320599938 | E13: 0.07267614372 | F13: 8.292132617 | T13: =1000*C13/$T$8 -> 0.0009201383688 | U13: =C13/$T$4 -> 0.002909733008 | V13: =$T$9-E13*($T$9-$T$10) -> 92.73238563
A14: 0.01688487162 | B14: 4.733496803e-05 | C14: 0.005606790285 | D14: 0.3320599558 | E14: 0.1399814333 | F14: 8.278191751 | T14: 0.001773022766 | U14: 0.005606790285 | V14: 86.00185667
A15: 0.02521654445 | B15: 0.0001055741745 | C15: 0.008373404823 | D15: 0.3320598527 | E15: 0.2088160613 | F15: 8.240534722 | T15: 0.002647903101 | U15: 0.008373404823 | V15: 79.11839387
A16: 0.03267725042 | B16: 0.0001772872643 | C16: 0.01085080515 | D16: 0.3320596794 | E16: 0.2700813694 | F16: 8.177631147 | T16: 0.003431325873 | U16: 0.01085080515 | V16: 72.99186306
A17: 0.0396328131 | B17: 0.000260793217 | C17: 0.01316046625 | D17: 0.332059428 | E17: 0.3266664882 | F17: 8.087219597 | T17: 0.004161704842 | U17: 0.01316046625 | V17: 67.33335118
A18: 0.04625701843 | B18: 0.0003552562452 | C18: 0.01536009502 | D18: 0.3320590905 | E18: 0.3798605466 | F18: 7.967440343 | T18: 0.004857288535 | U18: 0.01536009502 | V18: 62.01394534
A19: 0.05264664426 | B19: 0.0004601800435 | C19: 0.01748182705 | D19: 0.3320586592 | E19: 0.4303077495 | F19: 7.81690849 | T19: 0.005528239113 | U19: 0.01748182705 | V19: 56.96922505
A20: 0.0588664491 | B20: 0.0005753365987 | C20: 0.0195471655 | D20: 0.3320581256 | E20: 0.4783793531 | F20: 7.634627669 | T20: 0.006181356479 | U20: 0.0195471655 | V20: 52.16206469
A21: 0.06496537328 | B21: 0.0007007290377 | C21: 0.02157236093 | D21: 0.3320574806 | E21: 0.524306043 | F21: 7.419934505 | T21: =1000*C21/$T$8 -> 0.006821779505 | U21: 0.02157236093 | V21: 47.5693957
A22: 0.07098379034 | B22: 0.0008365742825 | C22: 0.0235708191 | D22: 0.3320567135 | E22: 0.568235388 | F22: 7.172468918 | T22: 0.007453747467 | U22: 0.0235708191 | V22: 43.1764612
A23: 0.07695703925 | B23: 0.0009832924893 | C23: 0.02555427388 | D23: 0.3320558121 | E23: 0.6102581813 | F23: 6.892180861 | T23: 0.008080970942 | U23: 0.02555427388 | V23: 38.97418187
A24: 0.08291675451 | B24: 0.001141485693 | C24: 0.02753322892 | D24: 0.3320547619 | E24: 0.6504175362 | F24: 6.579405683 | T24: 0.008706771472 | U24: 0.02753322892 | V24: 34.95824638
A25: 0.0888900391 | B25: 0.001311873376 | C25: 0.02951668297 | D25: 0.3320535463 | E25: 0.6887044284 | F25: 6.235075156 | T25: 0.009333994715 | U25: 0.02951668297 | V25: 31.12955716
A26: 0.09489545214 | B26: 0.001495120994 | C26: 0.03151079756 | D26: 0.332052148 | E26: 0.725038837 | F26: 5.861186117 | T26: 0.009964589117 | U26: 0.03151079756 | V26: 27.4961163
A27: 0.1009338823 | B27: 0.001691450482 | C27: 0.03351586652 | D27: 0.3320505516 | E27: 0.7592356648 | F27: 5.461698062 | T27: 0.0105986476 | U27: 0.03351586652 | V27: 24.07643352
A28: 0.1069732579 | B28: 0.001899920995 | C28: 0.03552123921 | D28: 0.3320487522 | E28: 0.7909670272 | F28: 5.0439112 | T28: 0.01123280212 | U28: 0.03552123921 | V28: 20.90329728
A29: 0.1129336529 | B29: 0.002117539832 | C29: 0.03750037511 | D29: 0.3320467653 | E29: 0.8197707029 | F29: 4.6196564 | T29: 0.01185865984 | U29: 0.03750037511 | V29: 18.02292971
A30: 0.1186947952 | B30: 0.00233909526 | C30: 0.03941333773 | D30: 0.3320446349 | E30: 0.845189761 | F30: 4.204288637 | T30: 0.01246359174 | U30: 0.03941333773 | V30: 15.4810239
A31: 0.1241427505 | B31: 0.002558744931 | C31: 0.04122229613 | D31: 0.3320424206 | E31: 0.8670248102 | F31: 3.812113908 | T31: 0.01303563462 | U31: 0.04122229613 | V31: 13.29751898
A32: 0.1292210278 | B32: 0.002772364677 | C32: 0.04290849399 | D32: 0.3320401739 | E32: 0.8854653596 | F32: 3.451559019 | T32: 0.0135688572 | U32: 0.04290849399 | V32: 11.45346404
A33: 0.1339360684 | B33: 0.002978370853 | C33: 0.04447407165 | D33: 0.3320379236 | E33: 0.9009652287 | F33: 3.124606377 | T33: 0.01406393632 | U33: 0.04447407165 | V33: 9.903477133
A34: 0.1383283614 | B34: 0.003176916876 | C34: 0.04593247462 | D34: 0.3320356797 | E34: 0.9140374291 | F34: 2.829434866 | T34: 0.01452512384 | U34: 0.04593247462 | V34: 8.596257094
A35: 0.1424461931 | B35: 0.003368874158 | C35: 0.0472997371 | D35: 0.3320334426 | E35: 0.9251361218 | F35: 2.562904863 | T35: 0.0149574902 | U35: 0.0472997371 | V35: 7.486387823
A36: 0.1463336136 | B36: 0.00355525697 | C36: 0.04859048641 | D36: 0.3320312086 | E36: 0.934627055 | F36: 2.321795735 | T36: 0.01536566097 | U36: 0.04859048641 | V36: 6.537294501
A37: 0.150027398 | B37: 0.003737004873 | C37: 0.04981693403 | D37: 0.3320289729 | E37: 0.9427962837 | F37: 2.103218774 | T37: 0.01575349776 | U37: 0.04981693403 | V37: 5.720371634
A38: 0.1535574297 | B38: 0.003914928953 | C38: 0.05098900291 | D38: 0.3320267309 | E38: 0.9498672304 | F38: 1.904688303 | T38: 0.01612413848 | U38: 0.05098900291 | V38: 5.013276956
A39: 0.1569479262 | B39: 0.004089715383 | C39: 0.05211473457 | D39: 0.3320244784 | E39: 0.9560160482 | F39: 1.724084827 | T39: 0.01648012609 | U39: 0.05211473457 | V39: 4.398395182
A40: 0.1602186526 | B40: 0.004261944357 | C40: 0.05320069211 | D40: 0.3320222111 | E40: 0.9613834131 | F40: 1.559595442 | T40: =1000*C40/$T$8 -> 0.01682353602 | U40: =C40/$T$4 -> 0.05320069211 | V40: =$T$9-E40*($T$9-$T$10) -> 3.861658691
A41: 0.163385916 | B41: 0.004432110309 | C41: 0.05425229032 | D41: 0.3320199256 | E41: 0.9660831668 | F41: 1.409657707 | T41: 0.01715608057 | U41: 0.05425229032 | V41: 3.391683323
A42: 0.1664633335 | B42: 0.004600639448 | C42: 0.05527405071 | D42: 0.3320176184 | E42: 0.9702085932 | F42: 1.272913087 | T42: 0.01747918957 | U42: 0.05527405071 | V42: 2.979140676
A43: 0.1694624148 | B43: 0.004767903984 | C43: 0.05626979508 | D43: 0.3320152864 | E43: 0.9738370045 | F43: 1.148169957 | T43: 0.01779407159 | U43: 0.05626979508 | V43: 2.61629955
A44: 0.1723930047 | B44: 0.004934233406 | C44: 0.05724279228 | D44: 0.3320129265 | E44: 0.9770331292 | F44: 1.034374543 | T44: 0.01810176032 | U44: 0.05724279228 | V44: 2.296687084
A45: 0.17526362 | B45: 0.005099923406 | C45: 0.05819587027 | D45: 0.3320105357 | E45: 0.9798516508 | F45: 0.9305881157 | T45: 0.01840315005 | U45: 0.05819587027 | V45: 2.014834921
A46: 0.1780817099 | B46: 0.005265242947 | C46: 0.0591315024 | D46: 0.3320081113 | E46: 0.9823391361 | F46: 0.8359689695 | T46: 0.0186990229 | U46: 0.0591315024 | V46: 1.766086388
A47: 0.1808538581 | B47: 0.00543043994 | C47: 0.06005187469 | D47: 0.3320056504 | E47: 0.9845355196 | F47: 0.7497580726 | T47: =1000*C47/$T$8 -> 0.01899007018 | U47: =C47/$T$4 -> 0.06005187469 | V47: =$T$9-E47*($T$9-$T$10) -> 1.54644804
A48: 0.183585943 | B48: 0.00559574585 | C48: 0.06095893891 | D48: 0.3320031502 | E48: 0.9864752613 | F48: 0.671267525 | T48: 0.01927690907 | U48: 0.06095893891 | V48: 1.352473871
A49: 0.1862832651 | B49: 0.005761379493 | C49: 0.06185445494 | D49: 0.3320006076 | E49: 0.9881882607 | F49: 0.5998711851 | T49: 0.0195600961 | U49: 0.06185445494 | V49: 1.181173932
A50: 0.1889506503 | B50: 0.005927550229 | C50: 0.062740025 | D50: 0.3319980199 | E50: 0.9897005861 | F50: 0.5349969826 | T50: 0.01984013795 | U50: 0.062740025 | V50: 1.029941389
A51: 0.1915925341 | B51: 0.006094460681 | C51: 0.06361712173 | D51: 0.3319953838 | E51: 0.9910350629 | F51: 0.4761205532 | T51: 0.02011750029 | U51: 0.06361712173 | V51: 0.8964937067
A52: 0.194213032 | B52: 0.006262309122 | C52: 0.06448711145 | D52: 0.3319926964 | E52: 0.9922117522 | F52: 0.4227599226 | T52: 0.02039261519 | U52: 0.06448711145 | V52: 0.7788247804
A53: 0.1968159984 | B53: 0.006431291601 | C53: 0.06535127373 | D53: 0.3319899541 | E53: 0.9932483439 | F53: 0.3744710255 | T53: 0.0206658873 | U53: 0.06535127373 | V53: 0.6751656125
A54: 0.1994050769 | B54: 0.006601603893 | C54: 0.06621081817 | D54: 0.3319871536 | E54: 0.9941604823 | F54: 0.3308439005 | T54: 0.02093769912 | U54: 0.06621081817 | V54: 0.5839517666
A55: 0.2019837441 | B55: 0.006773443331 | C55: 0.06706689887 | D55: 0.3319842911 | E55: 0.9949620378 | F55: 0.2914994327 | T55: =1000*C55/$T$8 -> 0.0212084156 | U55: =C55/$T$4 -> 0.06706689887 | V55: =$T$9-E55*($T$9-$T$10) -> 0.5037962168
A56: 0.2045553481 | B56: 0.006947010568 | C56: 0.06792062727 | D56: 0.3319813628 | E56: 0.9956653346 | F56: 0.2560865452 | T56: 0.02147838823 | U56: 0.06792062727 | V56: 0.433466544
A57: 0.2071231437 | B57: 0.007122511318 | C57: 0.06877308369 | D57: 0.3319783645 | E57: 0.9962813434 | F57: 0.2242797614 | T57: 0.02174795862 | U57: 0.06877308369 | V57: 0.3718656563
A58: 0.2096903235 | B58: 0.007300158124 | C58: 0.06962532791 | D58: 0.3319752917 | E58: 0.9968198461 | F58: 0.1957770762 | T58: 0.0220174619 | U58: 0.06962532791 | V58: 0.3180153932
A59: 0.2122600487 | B59: 0.007480172177 | C59: 0.07047840915 | D59: 0.3319721395 | E59: 0.997289575 | F59: 0.170298084 | T59: 0.02228722988 | U59: 0.07047840915 | V59: 0.2710425014
A60: 0.2148354773 | B60: 0.007662785248 | C60: 0.07133337557 | D60: 0.3319689029 | E60: 0.9976983342 | F60: 0.1475823245 | T60: 0.022557594 | U60: 0.07133337557 | V60: 0.2301665772
A61: 0.217419793 | B61: 0.007848241761 | C61: 0.07219128372 | D61: 0.3319655763 | E61: 0.9980531035 | F61: 0.1273878132 | T61: 0.02282888838 | U61: 0.07219128372 | V61: 0.1946896484
A62: 0.2200162328 | B62: 0.008036801055 | C62: 0.07305320794 | D62: 0.3319621534 | E62: 0.9983601287 | F62: 0.1094897277 | T62: 0.02310145275 | U62: 0.07305320794 | V62: 0.1639871305
A63: 0.2226281173 | B63: 0.008228739902 | C63: 0.07392025014 | D63: 0.3319586278 | E63: 0.9986250006 | F63: 0.09367922885 | T63: 0.02337563556 | U63: 0.07392025014 | V63: 0.1374999425
A64: 0.2252588808 | B64: 0.008424355324 | C64: 0.07479355002 | D64: 0.3319549921 | E64: 0.9988527239 | F64: 0.07976239804 | T64: 0.02365179724 | U64: 0.07479355002 | V64: 0.1147276053
A65: 0.227912105 | B65: 0.008623967795 | C65: 0.07567429609 | D65: 0.3319512383 | E65: 0.9990477782 | F65: 0.0675592735 | T65: 0.0239303136 | U65: 0.07567429609 | V65: 0.09522217623
A66: 0.2305915552 | B66: 0.008827924909 | C66: 0.07656373771 | D66: 0.3319473578 | E66: 0.999214171 | F66: 0.05690297409 | T66: 0.02421157974 | U66: 0.07656373771 | V66: 0.0785828995
A67: 0.2333012204 | B67: 0.009036605625 | C67: 0.07746319849 | D67: 0.3319433408 | E67: 0.9993554853 | F67: 0.04763889855 | T67: 0.02449601421 | U67: 0.07746319849 | V67: 0.06445147128
A68: 0.2360453593 | B68: 0.009250425212 | C68: 0.07837409143 | D68: 0.3319391765 | E68: 0.9994749216 | F68: 0.03962399084 | T68: 0.02478406385 | U68: 0.07837409143 | V68: 0.05250783522
A69: 0.2388285524 | B69: 0.009469841067 | C69: 0.07929793628 | D69: 0.331934853 | E69: 0.9995753356 | F69: 0.03272606364 | T69: 0.02507620924 | U69: 0.07929793628 | V69: 0.04246643681
A70: 0.2416557628 | B70: 0.00969535961 | C70: 0.08023637962 | D70: 0.3319303567 | E70: 0.9996592712 | F70: 0.02682317279 | T70: 0.02537297108 | U70: 0.08023637962 | V70: 0.03407287687
A71: 0.2445324072 | B71: 0.009927544509 | C71: 0.0811912185 | D71: 0.3319256726 | E71: 0.9997289909 | F71: 0.02180303674 | T71: 0.02567491765 | U71: 0.0811912185 | V71: 0.02710091261
A72: 0.2474644402 | B72: 0.01016702659 | C72: 0.08216442839 | D72: 0.3319207837 | E72: 0.9997865024 | F72: 0.01756249579 | T72: 0.02598267364 | U72: 0.08216442839 | V72: 0.02134976289
A73: 0.2504584556 | B73: 0.01041451583 | C73: 0.0831581967 | D73: 0.3319156705 | E73: 0.9998335832 | F73: 0.01400700634 | T73: 0.02629693077 | U73: 0.0831581967 | V73: 0.01664168028
A74: 0.2535218085 | B74: 0.0106708161 | C74: 0.08417496337 | D74: 0.3319103109 | E74: 0.9998718024 | F74: 0.01105016625 | T74: 0.02661846062 | U74: 0.08417496337 | V74: 0.01281975768
A75: 0.2566627652 | B75: 0.01093684325 | C75: 0.08521747047 | D75: 0.3319046795 | E75: 0.9999025406 | F75: 0.008613267563 | T75: 0.02694813031 | U75: 0.08521747047 | V75: 0.009745941884
A76: 0.2598906877 | B76: 0.01121364777 | C76: 0.0862888235 | D76: 0.3318987469 | E76: 0.9999270077 | F76: 0.006624873422 | T76: 0.02728692189 | U76: 0.0862888235 | V76: 0.007299230064
A77: 0.2632162644 | B77: 0.01150244317 | C77: 0.08739256788 | D77: 0.3318924789 | E77: 0.9999462597 | F77: 0.005020416222 | T77: 0.02763595651 | U77: 0.08739256788 | V77: 0.00537402819
A78: 0.2666518021 | B78: 0.01180464227 | C78: 0.08853278565 | D78: 0.3318858353 | E78: 0.9999612135 | F78: 0.003741814276 | T78: 0.02799652503 | U78: 0.08853278565 | V78: 0.003878653274
A79: 0.270211598 | B79: 0.01212190375 | C79: 0.08971421895 | D79: 0.3318787686 | E79: 0.9999726604 | F79: 0.002737104527 | T79: 0.02837012704 | U79: 0.08971421895 | V79: 0.002733963395
A80: 0.2739124222 | B80: 0.01245619301 | C80: 0.09094243003 | D80: 0.3318712221 | E80: 0.999981279 | F80: 0.001960088937 | T80: 0.02875852149 | U80: 0.09094243003 | V80: 0.001872101498
A81: 0.2777741517 | B81: 0.01280986265 | C81: 0.09222401137 | D81: 0.3318631272 | E81: 0.9999876466 | F81: 0.001369992264 | T81: 0.02916379309 | U81: 0.09222401137 | V81: 0.00123534055
A82: 0.2818206157 | B82: 0.01318576071 | C82: 0.09356686598 | D82: 0.3318544004 | E82: 0.9999922498 | F82: 0.0009311290134 | T82: 0.029588441 | U82: 0.09356686598 | V82: 0.0007750190855
A83: 0.2860807433 | B83: 0.01358737883 | C83: 0.09498058802 | D83: 0.3318449383 | E83: 0.9999954944 | F83: 0.0006125772978 | T83: 0.03003549916 | U83: 0.09498058802 | V83: 0.0004505573288
A84: 0.2905901524 | B84: 0.01401905911 | C84: 0.09647698944 | D84: 0.3318346112 | E84: 0.9999977145 | F84: 0.0003878572944 | T84: =1000*C84/$T$8 -> 0.03050870284 | U84: =C84/$T$4 -> 0.09647698944 | V84: =$T$9-E84*($T$9-$T$10) -> 0.000228545173
A85: 0.295393397 | B85: 0.01448628956 | C85: 0.09807084513 | D85: 0.3318232533 | E85: 0.9999991811 | F85: 0.0002346118284 | T85: 0.03101272427 | U85: 0.09807084513 | V85: 8.189414955e-05
A86: 0.3005472277 | B86: 0.01499613698 | C86: 0.09978097371 | D86: 0.3318106493 | E86: 1.00000011 | F86: 0.0001342864186 | T86: 0.03155351441 | U86: 0.09978097371 | V86: -1.095365185e-05
A87: 0.3061254591 | B87: 0.01555790068 | C87: 0.1016318511 | D87: 0.3317965121 | E87: 1.000000668 | F87: 7.180583656e-05 | T87: 0.03213881322 | U87: 0.1016318511 | V87: -6.676603341e-05
A88: 0.3122264873 | B88: 0.01618413452 | C88: 0.1036561023 | D88: 0.3317804497 | E88: 1.000000982 | F88: 3.524389852e-05 | T88: 0.03277893766 | U88: 0.1036561023 | V88: -9.821608361e-05
A89: 0.3189853817 | B89: 0.01689231334 | C89: 0.1058985091 | D89: 0.3317619084 | E89: 1.000001145 | F89: 1.548287973e-05 | T89: 0.03348804896 | U89: 0.1058985091 | V89: -0.0001145372446
A90: 0.3265943315 | B90: 0.01770769344 | C90: 0.1084227864 | D90: 0.3317400754 | E90: 1.000001221 | F90: 5.858759225e-06 | T90: 0.03428629553 | U90: 0.1084227864 | V90: -0.0001221416265
A91: 0.3353395572 | B91: 0.01866856041 | C91: 0.1113238139 | D91: 0.3317136964 | E91: 1.000001252 | F91: 1.788856748e-06 | T91: 0.03520368097 | U91: 0.1113238139 | V91: -0.0001252033255
A92: 0.3456744936 | B92: 0.01983679969 | C92: 0.1147518851 | D92: 0.3316807017 | E92: 1.000001262 | F92: 3.801980837e-07 | T92: 0.03628773226 | U92: 0.1147518851 | V92: -0.0001262053616
A93: 0.3583899611 | B93: 0.02132273599 | C93: 0.1189690877 | D93: 0.3316373166 | E93: 1.000001264 | F93: 2.238643847e-08 | T93: 0.03762132884 | U93: 0.1189690877 | V93: -0.000126443088
A94: 0.3751757231 | B94: 0.0233664413 | C94: 0.124535359 | D94: 0.3315751504 | E94: 1.000001265 | F94: -1.266904466e-08 | T94: 0.03938153837 | U94: 0.124535359 | V94: -0.0001264640838
A95: 0.4046805793 | B95: 0.02718514605 | C95: 0.13431666 | D95: 0.3314516535 | E95: 1.000001263 | F95: 3.347405367e-07 | T95: 0.04247465735 | U95: 0.13431666 | V95: -0.0001262931961
A96: 0.4144021859 | B96: 0.02850658177 | C96: 0.1375386863 | D96: 0.3314067977 | E96: 1.000001265 | F96: 1.042269768e-08 | T96: 0.04349355152 | U96: 0.1375386863 | V96: -0.0001264521121
A97: 0.4261793221 | B97: 0.03014937553 | C97: 0.1414413755 | D97: 0.3313495762 | E97: 1.000001265 | F97: -3.372136105e-09 | T97: 0.0447276902 | U97: 0.1414413755 | V97: -0.0001264584753
A98: 0.4517391601 | B98: 0.03387281607 | C98: 0.1499089194 | D98: 0.3312141254 | E98: 1.000001264 | F98: 1.479355655e-07 | T98: 0.04740536269 | U98: 0.1499089194 | V98: -0.0001263985277
A99: 0.4604793631 | B99: 0.03519570073 | C99: 0.152803581 | D99: 0.331164146 | E99: 1.000001265 | F99: -1.235382607e-08 | T99: 0.04832073507 | U99: 0.152803581 | V99: -0.0001264616992
A100: 0.4713637918 | B100: 0.03687849579 | C100: 0.1564077629 | D100: 0.3310992098 | E100: 1.000001265 | F100: 9.301630738e-09 | T100: 0.04946047746 | U100: 0.1564077629 | V100: -0.0001264536127
A101: 0.4899636212 | B101: 0.03984491931 | C101: 0.1625650678 | D101: 0.3309811371 | E101: 1.000001265 | F101: -1.956066817e-07 | T101: 0.05140758822 | U101: 0.1625650678 | V101: -0.0001265229484
A102: 0.4971996981 | B102: 0.04102991744 | C102: 0.1649598984 | D102: 0.3309327184 | E102: 1.000001265 | F102: 8.956225161e-09 | T102: 0.05216490015 | U102: 0.1649598984 | V102: -0.0001264540524
A103: 0.5055515617 | B103: 0.04241918124 | C103: 0.1677235639 | D103: 0.3308750648 | E103: 1.000001265 | F103: -3.098635233e-09 | T103: 0.05303884793 | U103: 0.1677235639 | V103: -0.0001264579696
A104: 0.5225633656 | B104: 0.04532033362 | C104: 0.1733513073 | D104: 0.3307516436 | E104: 1.000001264 | F104: 8.314832334e-08 | T104: 0.05481849665 | U104: 0.1733513073 | V104: -0.0001264322802
A105: 0.5298849394 | B105: 0.04659840255 | C105: 0.1757727271 | D105: 0.330696002 | E105: 1.000001265 | F105: -2.203485774e-08 | T105: 0.05558421683 | U105: 0.1757727271 | V105: -0.0001264633603
A106: 0.5385526045 | B106: 0.04813436318 | C106: 0.1786387967 | D106: 0.3306281273 | E106: 1.000001265 | F106: 2.181557135e-08 | T106: 0.05649054762 | U106: 0.1786387967 | V106: -0.0001264508796
A107: 0.5498984905 | B107: 0.05018245738 | C107: 0.1823895464 | D107: 0.3305359436 | E107: 1.000001265 | F107: -1.203646774e-07 | T107: 0.05767663881 | U107: 0.1823895464 | V107: -0.0001264893409
A108: 0.5564003443 | B108: 0.05137531372 | C108: 0.1845384662 | D108: 0.330481385 | E108: 1.000001264 | F108: 2.724951074e-08 | T108: 0.0583561869 | U108: 0.1845384662 | V108: -0.0001264498306
A109: 0.5633884372 | B109: 0.05267295446 | C109: 0.1868476918 | D109: 0.3304213188 | E109: 1.000001265 | F109: -1.266255955e-08 | T109: 0.05908642816 | U109: 0.1868476918 | V109: -0.0001264602322
A110: 0.5731020998 | B110: 0.05450351703 | C110: 0.1900568777 | D110: 0.3303353357 | E110: 1.000001264 | F110: 4.783553565e-08 | T110: 0.06010126186 | U110: 0.1900568777 | V110: -0.0001264451361
A111: 0.5803519075 | B111: 0.05589007344 | C111: 0.1924515068 | D111: 0.3302692496 | E111: 1.000001265 | F111: -4.066812177e-08 | T111: 0.06085851007 | U111: 0.1924515068 | V111: -0.0001264668167
A112: 0.5880918624 | B112: 0.05738953141 | C112: 0.195007497 | D112: 0.3301968663 | E112: 1.000001264 | F112: 5.887096455e-08 | T112: 0.06166678514 | U112: 0.195007497 | V112: -0.0001264431268
A113: 0.595801564 | B113: 0.05890279366 | C113: 0.1975529323 | D113: 0.3301228648 | E113: 1.000001265 | F113: -9.675601439e-08 | T113: 0.06247172245 | U113: 0.1975529323 | V113: -0.00012647919
A114: 0.6025819346 | B114: 0.06024986368 | C114: 0.1997910625 | D114: 0.3300561965 | E114: 1.000001264 | F114: 8.701456816e-08 | T114: 0.06317948136 | U114: 0.1997910625 | V114: -0.0001264374621
A115: 0.6084721984 | B115: 0.0614324111 | C115: 0.201735007 | D115: 0.3299970615 | E115: 1.000001265 | F115: -3.668588895e-08 | T115: 0.06379421058 | U115: 0.201735007 | V115: -0.0001264650631
A116: 0.6144538691 | B116: 0.06264502683 | C116: 0.2037087582 | D116: 0.329935838 | E116: 1.000001265 | F116: 1.951636319e-08 | T116: 0.06441836552 | U116: 0.2037087582 | V116: -0.0001264527741
A117: 0.6216665731 | B117: 0.0641228993 | C117: 0.2060882168 | D117: 0.32986043 | E117: 1.000001265 | F117: -3.583127595e-08 | T117: 0.06517081641 | U117: 0.2060882168 | V117: -0.0001264645473
A118: 0.6282099186 | B118: 0.06547846676 | C118: 0.2082463796 | D118: 0.3297905061 | E118: 1.000001264 | F118: 4.282191825e-08 | T118: 0.06585328741 | U118: 0.2082463796 | V118: -0.0001264481384
A119: 0.6349619567 | B119: 0.06689207127 | C119: 0.2104728898 | D119: 0.3297168264 | E119: 1.000001265 | F119: -6.913356658e-08 | T119: 0.06655737175 | U119: 0.2104728898 | V119: -0.0001264709752
A120: 0.6412062338 | B120: 0.06821274984 | C120: 0.2125315166 | D120: 0.3296472949 | E120: 1.000001264 | F120: 8.016783484e-08 | T120: 0.06720836671 | U120: 0.2125315166 | V120: -0.0001264410786
A121: 0.646648032 | B121: 0.06937418412 | C121: 0.2143252233 | D121: 0.329585598 | E121: 1.000001265 | F121: -4.51235511e-08 | T121: 0.06777558656 | U121: 0.2143252233 | V121: -0.0001264657938
A122: 0.651853876 | B122: 0.07049439356 | C122: 0.2160408388 | D122: 0.3295256085 | E122: 1.000001265 | F122: 2.116517094e-08 | T122: 0.06831811182 | U122: 0.2160408388 | V122: -0.0001264529222
A123: 0.6577621169 | B123: 0.0717765659 | C123: 0.2179875515 | D123: 0.3294563693 | E123: 1.000001265 | F123: -2.40294939e-08 | T123: 0.06893371644 | U123: 0.2179875515 | V123: -0.0001264615215
A124: 0.6646224174 | B124: 0.07327977808 | C124: 0.2202474411 | D124: 0.3293744179 | E124: 1.000001264 | F124: 7.07470347e-08 | T124: 0.06964835626 | U124: 0.2202474411 | V124: -0.0001264439109
A125: 0.6693811267 | B125: 0.0743316008 | C125: 0.2218147009 | D125: 0.3293165821 | E125: 1.000001265 | F125: -2.589788387e-08 | T125: 0.07014396732 | U125: 0.2218147009 | V125: -0.0001264617076
A126: 0.6743383987 | B126: 0.07543524276 | C126: 0.2234470616 | D126: 0.3292554643 | E126: 1.000001265 | F126: 1.380471405e-08 | T126: 0.07066016512 | U126: 0.2234470616 | V126: -0.0001264545085
A127: 0.6805540187 | B127: 0.0768304645 | C127: 0.2254933471 | D127: 0.3291775706 | E127: 1.000001265 | F127: -3.074814114e-08 | T127: 0.07130725741 | U127: 0.2254933471 | V127: -0.0001264624107
A128: 0.6859685302 | B128: 0.07805622573 | C128: 0.2272754965 | D128: 0.3291085635 | E128: 1.000001265 | F128: 3.444177983e-08 | T128: 0.07187082254 | U128: 0.2272754965 | V128: -0.0001264510082
A129: 0.6915880866 | B129: 0.07933860935 | C129: 0.2291247368 | D129: 0.3290357991 | E129: 1.000001265 | F129: -5.239592435e-08 | T129: 0.07245560365 | U129: 0.2291247368 | V129: -0.0001264659386
A130: 0.6969033395 | B130: 0.0805611129 | C130: 0.23087346 | D130: 0.3289658948 | E130: 1.000001264 | F130: 6.341514346e-08 | T130: 0.07300859847 | U130: 0.23087346 | V130: -0.0001264463178
A131: 0.7016210261 | B131: 0.0816539621 | C131: 0.2324252698 | D131: 0.3289029635 | E131: 1.000001265 | F131: -4.098731473e-08 | T131: 0.07349932384 | U131: 0.2324252698 | V131: -0.0001264637926
A132: 0.7060997419 | B132: 0.08269822735 | C132: 0.2338981975 | D132: 0.3288424442 | E132: 1.000001265 | F132: 2.065581813e-08 | T132: 0.07396510446 | U132: 0.2338981975 | V132: -0.0001264536015
A133: 0.7110378237 | B133: 0.08385724486 | C133: 0.2355218818 | D133: 0.3287748364 | E133: 1.000001265 | F133: -2.064358473e-08 | T133: 0.07447855853 | U133: 0.2355218818 | V133: -0.0001264603256
A134: 0.7167199536 | B134: 0.08520081788 | C134: 0.2373897994 | D134: 0.3286958906 | E134: 1.000001264 | F134: 4.995328166e-08 | T134: 0.07506924595 | U134: 0.2373897994 | V134: -0.0001264490375
A135: 0.7210284123 | B135: 0.0862266526 | C135: 0.2388058416 | D135: 0.3286352038 | E135: 1.000001265 | F135: -2.573893608e-08 | T135: 0.07551703781 | U135: 0.2388058416 | V135: -0.0001264610359
A136: 0.7254847047 | B136: 0.08729410416 | C136: 0.240270195 | D136: 0.3285716803 | E136: 1.000001265 | F136: 1.774245931e-08 | T136: 0.07598010699 | U136: 0.240270195 | V136: -0.0001264542313
A137: 0.7306350553 | B137: 0.08853593743 | C137: 0.2419622632 | D137: 0.3284973019 | E137: 1.000001265 | F137: -3.084611241e-08 | T137: 0.07651518595 | U137: 0.2419622632 | V137: -0.0001264617134
A138: 0.7360787193 | B138: 0.08985796556 | C138: 0.2437502756 | D138: 0.32841756 | E138: 1.000001264 | F138: 7.929388883e-08 | T138: 0.07708060512 | U138: 0.2437502756 | V138: -0.0001264450179
A139: 0.7397340204 | B139: 0.09075114013 | C139: 0.2449506418 | D139: 0.3283633609 | E139: 1.000001265 | F139: -1.79124657e-08 | T139: 0.07746019424 | U139: 0.2449506418 | V139: -0.0001264596655
A140: 0.7435044067 | B140: 0.09167703251 | C140: 0.2461885923 | D140: 0.3283069019 | E140: 1.000001265 | F140: 5.619639076e-09 | T140: 0.07785166855 | U140: 0.2461885923 | V140: -0.0001264561564
A141: 0.7488787186 | B141: 0.09300486769 | C141: 0.2479527976 | D141: 0.3282254484 | E141: 1.000001265 | F141: -1.63043826e-08 | T141: 0.07840955926 | U141: 0.2479527976 | V141: -0.0001264593664
A142: 0.7537547647 | B142: 0.09421779858 | C142: 0.2495530578 | D142: 0.3281505477 | E142: 1.000001265 | F142: 2.966103438e-08 | T142: 0.07891560596 | U142: 0.2495530578 | V142: -0.0001264527164
A143: 0.7580630556 | B143: 0.09529599101 | C143: 0.2509666818 | D143: 0.3280835728 | E143: 1.000001265 | F143: -2.839024811e-08 | T143: 0.07936263313 | U143: 0.2509666818 | V143: -0.0001264610305
A144: 0.7624830851 | B144: 0.09640847575 | C144: 0.2524166676 | D144: 0.328014081 | E144: 1.000001265 | F144: 3.375901283e-08 | T144: 0.07982115889 | U144: 0.2524166676 | V144: -0.0001264522361
A145: 0.7668662414 | B145: 0.09751800815 | C145: 0.2538542521 | D145: 0.327944385 | E145: 1.000001265 | F145: -4.088036782e-08 | T145: 0.08027576304 | U145: 0.2538542521 | V145: -0.0001264626771
A146: 0.7710017878 | B146: 0.09857063836 | C146: 0.2552103441 | D146: 0.3278779067 | E146: 1.000001265 | F146: 3.757837706e-08 | T146: 0.08070459698 | U146: 0.2552103441 | V146: -0.0001264518139
A147: 0.7749141719 | B147: 0.09957162847 | C147: 0.2564930043 | D147: 0.3278143697 | E147: 1.000001265 | F147: -2.630647525e-08 | T147: 0.08111020976 | U147: 0.2564930043 | V147: -0.0001264605738
A148: 0.7788812212 | B148: 0.1005917282 | C148: 0.2577933313 | D148: 0.3277493006 | E148: 1.000001265 | F148: 2.132085837e-08 | T148: =1000*C148/$T$8 -> 0.08152140924 | U148: =C148/$T$4 -> 0.2577933313 | V148: =$T$9-E148*($T$9-$T$10) -> -0.000126454111
A149: 0.7831501509 | B149: 0.101695216 | C149: 0.2591923192 | D149: 0.3276785517 | E149: 1.000001265 | F149: -2.827843659e-08 | T149: 0.08196380807 | U149: 0.2591923192 | V149: -0.0001264607625
A150: 0.7875410881 | B150: 0.1028364718 | C150: 0.260630974 | D150: 0.3276049894 | E150: 1.000001265 | F150: 4.689898515e-08 | T150: 0.08241875065 | U150: 0.260630974 | V150: -0.0001264507971
A151: 0.7915550015 | B151: 0.1038852609 | C151: 0.2619458159 | D151: 0.3275370381 | E151: 1.000001265 | F151: -4.935742188e-08 | T151: 0.08283454017 | U151: 0.2619458159 | V151: -0.0001264634379
A152: 0.7950828096 | B152: 0.1048113935 | C152: 0.2631011975 | D152: 0.3274767573 | E152: 1.000001265 | F152: 2.490335664e-08 | T152: 0.08319990393 | U152: 0.2631011975 | V152: -0.0001264537622
A153: 0.7985782438 | B153: 0.1057330469 | C153: 0.2642457658 | D153: 0.3274165119 | E153: 1.000001265 | F153: -1.253163405e-08 | T153: 0.0835618482 | U153: 0.2642457658 | V153: -0.0001264585971
A154: 0.8026803372 | B154: 0.1068197622 | C154: 0.2655887128 | D154: 0.3273451504 | E154: 1.000001265 | F154: 1.756409193e-08 | T154: 0.08398652533 | U154: 0.2655887128 | V154: -0.0001264547554
A155: 0.8073877137 | B155: 0.1080736149 | C155: 0.2671294552 | D155: 0.327262377 | E155: 1.000001265 | F155: -5.660029574e-08 | T155: 0.08447375086 | U155: 0.2671294552 | V155: -0.000126464099
A156: 0.8105118841 | B156: 0.1089097699 | C156: 0.2681517921 | D156: 0.3272069197 | E156: 1.000001265 | F156: 1.587896597e-08 | T156: 0.08479704218 | U156: 0.2681517921 | V156: -0.0001264550082
A157: 0.8137618511 | B157: 0.1097829823 | C157: 0.2692151095 | D157: 0.3271487849 | E157: 1.000001265 | F157: -6.313521711e-09 | T157: 0.08513329265 | U157: 0.2692151095 | V157: -0.0001264577688
A158: 0.8181583735 | B158: 0.110969754 | C158: 0.2706532523 | D158: 0.3270694168 | E158: 1.000001265 | F158: 1.617358907e-08 | T158: 0.08558807333 | U158: 0.2706532523 | V158: -0.0001264550087
A159: 0.822134208 | B159: 0.1120484114 | C159: 0.2719534823 | D159: 0.3269969233 | E159: 1.000001265 | F159: -2.494631301e-08 | T159: 0.08599924215 | U159: 0.2719534823 | V159: -0.0001264600114
A160: 0.8262833541 | B160: 0.1131796006 | C160: 0.2733100821 | D160: 0.3269205376 | E160: 1.000001265 | F160: 5.17436043e-08 | T160: 0.08642823668 | U160: 0.2733100821 | V160: -0.000126450779
A161: 0.8293389213 | B161: 0.114016244 | C161: 0.2743089232 | D161: 0.3268638046 | E161: 1.000001265 | F161: -1.738491598e-08 | T161: 0.08674409797 | U161: 0.2743089232 | V161: -0.0001264590588
A162: 0.8324676902 | B162: 0.114876093 | C162: 0.275331513 | D162: 0.326805289 | E162: 1.000001265 | F162: 7.284467735e-09 | T162: 0.08706746928 | U162: 0.275331513 | V162: -0.0001264561267
A163: 0.8365236319 | B163: 0.1159955094 | C163: 0.2766568613 | D163: 0.326728793 | E163: 1.000001265 | F163: -1.528174735e-08 | T163: 0.08748658121 | U163: 0.2766568613 | V163: -0.0001264587773
A164: 0.8403672044 | B164: 0.1170612733 | C164: 0.2779125268 | D164: 0.3266556329 | E164: 1.000001265 | F164: 2.497394123e-08 | T164: 0.08788365748 | U164: 0.2779125268 | V164: -0.0001264540902
A165: 0.8443444185 | B165: 0.1181691743 | C165: 0.2792115545 | D165: 0.3265792405 | E165: 1.000001265 | F165: -5.212836354e-08 | T165: 0.08829444612 | U165: 0.2792115545 | V165: -0.00012646298
A166: 0.8472398267 | B166: 0.1189789746 | C166: 0.2801570536 | D166: 0.3265231848 | E166: 1.000001265 | F166: 1.613957186e-08 | T166: 0.0885934392 | U166: 0.2801570536 | V166: -0.0001264551452
A167: 0.8502036335 | B167: 0.11981074 | C167: 0.2811247198 | D167: 0.3264654177 | E167: 1.000001265 | F167: -6.228272573e-09 | T167: 0.0888994421 | U167: 0.2811247198 | V167: -0.0001264576941
A168: 0.8541282056 | B168: 0.1209165482 | C168: 0.2824058057 | D168: 0.3263883199 | E168: 1.000001265 | F168: 1.373061515e-08 | T168: 0.08930455706 | U168: 0.2824058057 | V168: -0.0001264554453
A169: 0.8578615582 | B169: 0.1219731431 | C169: 0.2836241905 | D169: 0.3263143369 | E169: 1.000001265 | F169: -2.40449327e-08 | T169: 0.08968984416 | U169: 0.2836241905 | V169: -0.000126459666
A170: 0.8617342012 | B170: 0.123073965 | C170: 0.2848877398 | D170: 0.3262369299 | E170: 1.000001265 | F170: 5.434638783e-08 | T170: 0.09008941352 | U170: 0.2848877398 | V170: -0.0001264509889
A171: 0.8644594856 | B171: 0.1238515766 | C171: 0.2857767535 | D171: 0.3261820499 | E171: 1.000001265 | F171: -1.438447041e-08 | T171: 0.09037054434 | U171: 0.2857767535 | V171: -0.0001264585658
A172: 0.8672547779 | B172: 0.1246516804 | C172: 0.2866884486 | D172: 0.3261254102 | E172: 1.000001265 | F172: 4.854477334e-09 | T172: 0.09065884765 | U172: 0.2866884486 | V172: -0.0001264564588
A173: 0.8711061788 | B173: 0.1257582511 | C173: 0.2879443371 | D173: 0.3260467887 | E173: 1.000001265 | F173: -1.200514236e-08 | T173: 0.09105599446 | U173: 0.2879443371 | V173: -0.0001264582849
A174: 0.8747542642 | B174: 0.1268108661 | C174: 0.2891336468 | D174: 0.3259716932 | E174: 1.000001265 | F174: 2.30015409e-08 | T174: 0.09143208722 | U174: 0.2891336468 | V174: -0.0001264545234
A175: 0.8779316259 | B175: 0.1277311936 | C175: 0.2901692723 | D175: 0.3259057908 | E175: 1.000001265 | F175: -2.080664067e-08 | T175: 0.09175958073 | U175: 0.2901692723 | V175: -0.0001264592012
A176: 0.8811917585 | B176: 0.1286789157 | C176: 0.2912316575 | D176: 0.3258376894 | E176: 1.000001265 | F176: 2.286206682e-08 | T176: 0.09209553644 | U176: 0.2912316575 | V176: -0.0001264545738
A177: 0.8844897553 | B177: 0.1296411687 | C177: 0.2923061548 | D177: 0.3257682985 | E177: 1.000001265 | F177: -2.804357138e-08 | T177: 0.09243532234 | U177: 0.2923061548 | V177: -0.0001264599273
A178: 0.8876731055 | B178: 0.1305733321 | C178: 0.2933430822 | D178: 0.3257008428 | E178: 1.000001265 | F178: 2.921617144e-08 | T178: 0.09276322755 | U178: 0.2933430822 | V178: -0.0001264539475
A179: 0.8906817195 | B179: 0.1314573621 | C179: 0.2943228938 | D179: 0.3256366577 | E179: 1.000001265 | F179: -2.266276453e-08 | T179: 0.0930730712 | U179: 0.2943228938 | V179: -0.0001264593306
A180: 0.8936531459 | B180: 0.1323333585 | C180: 0.2952904045 | D180: 0.3255728528 | E180: 1.000001265 | F180: 1.697542647e-08 | T180: 0.09337902494 | U180: 0.2952904045 | V180: -0.0001264552448
A181: 0.8967953087 | B181: 0.1332628161 | C181: 0.2963133008 | D181: 0.3255049336 | E181: 1.000001265 | F181: -1.847242611e-08 | T181: =1000*C181/$T$8 -> 0.09370249316 | U181: =C181/$T$4 -> 0.2963133008 | V181: =$T$9-E181*($T$9-$T$10) -> -0.0001264588717
A182: 0.900116668 | B182: 0.1342487743 | C182: 0.2973942997 | D182: 0.3254326388 | E182: 1.000001265 | F182: 2.882191973e-08 | T182: 0.09404433503 | U182: 0.2973942997 | V182: -0.0001264540704
A183: 0.9033122649 | B183: 0.1352007881 | C183: 0.2984341395 | D183: 0.3253625929 | E183: 1.000001265 | F183: -3.75886219e-08 | T183: 0.09437316123 | U183: 0.2984341395 | V183: -0.0001264607663
A184: 0.9061579617 | B184: 0.1360513585 | C184: 0.2993599335 | D184: 0.3252998121 | E184: 1.000001265 | F184: 2.562181563e-08 | T184: 0.09466592302 | U184: 0.2993599335 | V184: -0.0001264544286
A185: 0.9088371149 | B185: 0.136854557 | C185: 0.300231382 | D185: 0.3252403563 | E185: 1.000001265 | F185: -1.234729245e-08 | T185: 0.09494149922 | U185: 0.300231382 | V185: -0.0001264582141
A186: 0.911783537 | B186: 0.1377405771 | C186: 0.3011895806 | D186: 0.3251745773 | E186: 1.000001265 | F186: 1.119326916e-08 | T186: 0.09524450822 | U186: 0.3011895806 | V186: -0.0001264558835
A187: 0.9152473725 | B187: 0.1387857988 | C187: 0.3023157971 | D187: 0.3250967203 | E187: 1.000001265 | F187: -2.664269079e-08 | T187: 0.09560064916 | U187: 0.3023157971 | V187: -0.0001264595971
A188: 0.9179897392 | B188: 0.139616082 | C188: 0.3032072466 | D188: 0.3250346751 | E188: 1.000001265 | F188: 1.696121831e-08 | T188: 0.09588255022 | U188: 0.3032072466 | V188: -0.0001264553368
A189: 0.9208201063 | B189: 0.1404755716 | C189: 0.3041271229 | D189: 0.3249702628 | E189: 1.000001265 | F189: -1.360854595e-08 | T189: 0.09617344067 | U189: 0.3041271229 | V189: -0.0001264583047
A190: 0.923949611 | B190: 0.1414289301 | C190: 0.3051440069 | D190: 0.3248985969 | E190: 1.000001265 | F190: 2.039268526e-08 | T190: 0.09649500761 | U190: 0.3051440069 | V190: -0.0001264550281
A191: 0.927183155 | B191: 0.1424173251 | C191: 0.3061944604 | D191: 0.3248240552 | E191: 1.000001265 | F191: -3.822653381e-08 | T191: 0.09682719019 | U191: 0.3061944604 | V191: -0.0001264606364
A192: 0.9300649283 | B192: 0.1433010568 | C192: 0.3071304335 | D192: 0.3247571992 | E192: 1.000001265 | F192: 3.84376792e-08 | T192: 0.09712317086 | U192: 0.3071304335 | V192: -0.0001264533421
A193: 0.9325439464 | B193: 0.1440634366 | C193: 0.3079354408 | D193: 0.3246993666 | E193: 1.000001265 | F193: -1.552679062e-08 | T193: 0.09737773653 | U193: 0.3079354408 | V193: -0.000126458453
A194: 0.9350478427 | B194: 0.1448354928 | C194: 0.3087483809 | D194: 0.3246406523 | E194: 1.000001265 | F194: 6.965041086e-09 | T194: 0.09763481077 | U194: 0.3087483809 | V194: -0.0001264563344
A195: 0.938161832 | B195: 0.1457985058 | C195: 0.3097591942 | D195: 0.3245672083 | E195: 1.000001265 | F195: -1.206245506e-08 | T195: 0.09795445799 | U195: 0.3097591942 | V195: -0.0001264581126
A196: 0.9418287848 | B196: 0.1469365601 | C196: 0.3109492074 | D196: 0.3244801188 | E196: 1.000001265 | F196: 5.388084401e-08 | T196: 0.09833077319 | U196: 0.3109492074 | V196: -0.0001264520033
A197: 0.943986327 | B197: 0.1476082013 | C197: 0.3116492314 | D197: 0.3244285718 | E197: 1.000001265 | F197: -8.520362046e-09 | T197: 0.09855214021 | U197: 0.3116492314 | V197: -0.0001264577727
A198: 0.9462483271 | B198: 0.1483139819 | C198: 0.3123830275 | D198: 0.3243742852 | E198: 1.000001265 | F198: 2.160023599e-09 | T198: 0.09878418692 | U198: 0.3123830275 | V198: -0.00012645679
A199: 0.9497926924 | B199: 0.1494232187 | C199: 0.313532577 | D199: 0.3242887195 | E199: 1.000001265 | F199: -8.7853192e-09 | T199: 0.09914770639 | U199: 0.313532577 | V199: -0.0001264577873
A200: 0.952901032 | B200: 0.150399351 | C200: 0.3145404592 | D200: 0.3242131732 | E200: 1.000001265 | F200: 1.794163946e-08 | T200: 0.09946642672 | U200: 0.3145404592 | V200: -0.0001264553663
... 18 more rows

Sheet Sc13問題
A1: Baeher p. 347 eq. (3.196a)
H3: このRKF45シートによる数値計算結果
I4: ↓
A5: Sc | B5: Baeher | D5: 0.332Sc^1/3 | E5: Baeherとの差% | H5: Sc | I5: θ'(0) | J5: Baeher | K5: Baeherとの差%
A6: 0.01 | B6: =(1/SQRT(PI()))*SQRT(A6)/(1+1.973*A6^0.272+21.29*A6)^(1/6) -> 0.05126519419 | D6: =0.332*A6^(1/3) -> 0.07152723171 | E6: =(D6/B6)*100-100 -> 39.52396523 | H6: 0.01 | I6: 0.052 | J6: =(1/SQRT(PI()))*SQRT(H6)/(1+1.973*H6^0.272+21.29*H6)^(1/6) -> 0.05126519419 | K6: =(J6/I6)*100-100 -> -1.413088105
A7: 0.025 | B7: 0.07789634429 | D7: 0.09707738891 | E7: 24.6238059 | H7: 0.025 | I7: 0.0779 | J7: =(1/SQRT(PI()))*SQRT(H7)/(1+1.973*H7^0.272+21.29*H7)^(1/6) -> 0.07789634429 | K7: =(J7/I7)*100-100 -> -0.004692823461
A8: 0.1 | B8: 0.1405502814 | D8: 0.1541007493 | E8: 9.641010882 | H8: 0.511 | I8: 0.2613 | J8: 0.261290746 | K8: -0.003541522544
A9: 0.7 | B9: 0.2924184681 | D9: 0.2947841286 | E9: 0.808998321 | H9: 0.7 | I9: 0.293 | J9: 0.2924184681 | K9: -0.1984750575
A10: 1 | B10: 0.3315896609 | D10: 0.332 | E10: 0.1237490622 | H10: 2 | I10: 0.4223 | J10: 0.4215732146 | K10: -0.1721016853
A11: 5.85 | B11: 0.6072758849 | D11: 0.5982141834 | E11: -1.492188606 | H11: 5.85 | I11: 0.608 | J11: 0.6072758849 | K11: -0.1190978726
A12: 10 | B12: 0.7274753636 | D12: 0.7152723171 | E12: -1.677451513 | H12: 15.4 | I12: 0.843 | J12: 0.840958178 | K12: -0.2422090124
A13: 15.5 | B13: 0.8427854599 | D13: 0.8277807381 | E13: -1.78037265 | H13: 78.2 | I13: 1.448 | J13: 1.44813104 | K13: 0.009049698957
A14: 78.2 | B14: 1.44813104 | D14: 1.41973406 | E14: -1.960939913 | H14: 276 | I14: 2.2 | J14: 2.205842517 | K14: 0.2655689697
A15: 100 | B15: 1.572030185 | D15: 1.541007493 | E15: -1.973415818 | H15: 500 | I15: 2.7 | J15: 2.689302354 | K15: -0.3962091009
A16: 400 | B16: 2.496443736 | D16: 2.446196915 | E16: -2.012735977 | H16: 1000 | I16: 3.4 | J16: 3.38855982 | K16: -0.3364758731
A17: 1000 | B17: 3.38855982 | D17: 3.32 | E17: -2.023273129 | H17: 2000 | I17: 4.27 | J17: 4.26950552 | K17: -0.01158033415
A18: 2040 | B18: 4.297785298 | D18: 4.210640268 | E18: -2.027672946 | H18: 5000 | I18: 5.8 | J18: 5.794796247 | K18: -0.08971987842
A19: 5000 | B19: 5.794796247 | D19: 5.677120143 | E19: -2.030720306 | H19: 10930 | I19: 7.52 | J19: 7.520750198 | K19: 0.009976043324
A20: 10000 | B20: 7.301082111 | D20: 7.152723171 | E20: -2.032013029 | H20: 14684 | I20: 8.2944 | J20: 8.298586726 | K20: 0.05047653405
A21: 14684 | B21: 8.298586726 | D21: 8.129918819 | E21: -2.032489534

Sheet 図3.83各種形状物質移動における物質移動境膜厚さの比較
A1: 円管内流れD
A2: Sc=1
A3: 乱流 | B3: Sh | C3: δ/D
A4: Re
A5: 2300 | B5: =0.023*A5^0.83 -> 14.18933166 | C5: =1/B5 -> 0.07047548286
A6: 40000 | B6: =0.023*A6^0.83 -> 151.8579836 | C6: =1/B6 -> 0.00658509995
A7: 100000 | B7: =0.023*A7^0.83 -> 324.8836353 | C7: =1/B7 -> 0.003078025149
A8: 400000 | B8: =0.023*A8^0.83 -> 1026.685974 | C8: =1/B8 -> 0.0009740076573
A9: 1000000 | B9: =0.023*A9^0.83 -> 2196.482948 | C9: =1/B9 -> 0.0004552732818
A11: 層流
A12: Re | B12: Sh
A13: 10 | B13: 3.66 | C13: =1/B13 -> 0.2732240437
A14: 100 | B14: 3.66 | C14: =1/B14 -> 0.2732240437
A15: 400 | B15: 3.66 | C15: =1/B15 -> 0.2732240437
A16: 1000 | B16: 3.66 | C16: =1/B16 -> 0.2732240437
A17: 2300 | B17: 3.66 | C17: =1/B17 -> 0.2732240437
A19: 球D
A20: 層流ランツマーシャル
A21: 1 | B21: =2+0.6*A21^0.5 -> 2.6 | C21: =1/B21 -> 0.3846153846
A22: 4 | B22: =2+0.6*A22^0.5 -> 3.2 | C22: =1/B22 -> 0.3125
A23: 10 | B23: =2+0.6*A23^0.5 -> 3.897366596 | C23: =1/B23 -> 0.2565835097
A24: 20 | B24: =2+0.6*A24^0.5 -> 4.683281573 | C24: =1/B24 -> 0.2135254916
A27: 乱流
A28: 20 | B28: =0.347*A28^0.6 -> 2.093859189 | C28: =1/B28 -> 0.4775870342
A29: 40 | B29: =0.347*A29^0.6 -> 3.17369706 | C29: 0.3150899349
A30: 100 | B30: 5.499579378 | C30: 0.1818320877
A31: 1000 | B31: 21.89421985 | C31: 0.0456741554
A32: 10000 | B32: 87.16245917 | C32: 0.01147282912
A33: 100000 | B33: 347 | C33: 0.00288184438
F34: 液相 Sc=1000 | G34: =1000^0.33 -> 9.77237221
A35: 平板Ｌ | F35: Re | H35: 1/Sh
A36: Re | B36: Sh | C36: δ/D | F36: 1 | G36: 0.384 | H36: =G36/1000^0.33 -> 0.0392944509
A37: 層流 | F37: 100 | G37: 0.17 | H37: =G37/1000^0.33 -> 0.01739598087
A38: 100 | B38: =0.664*A38^0.5 -> 6.64 | C38: =1/B38 -> 0.1506024096 | F38: 100000 | G38: 0.0021 | H38: =G38/1000^0.33 -> 0.0002148915284
A39: 1000 | B39: =0.664*A39^0.5 -> 20.99752366 | C39: =1/B39 -> 0.04762466356 | F39: 10000000 | G39: 6e-05 | H39: =G39/1000^0.33 -> 6.139757954e-06
A40: 10000 | B40: =0.664*A40^0.5 -> 66.4 | C40: =1/B40 -> 0.01506024096
A41: 100000 | B41: =0.664*A41^0.5 -> 209.9752366 | C41: =1/B41 -> 0.004762466356
A42: 500000 | B42: =0.664*A42^0.5 -> 469.5189027 | C42: =1/B42 -> 0.002129839702
A43: 乱流
A45: 500000 | B45: =0.037*A45^0.8 -> 1340.842378 | C45: =1/B45 -> 0.000745799817
A46: 1000000 | B46: =0.037*A46^0.8 -> 2334.542175 | C46: =1/B46 -> 0.0004283495115
A47: 10000000 | B47: =0.037*A47^0.8 -> 14729.96531 | C47: =1/B47 -> 6.788882247e-05
A48: 100000000 | B48: =0.037*A48^0.8 -> 92939.79797 | C48: =1/B48 -> 1.075965326e-05
A50: 円柱まわり
A51: Re | B51: Sh
A52: 400 | B52: =0.281*A52^0.6 -> 10.23157082 | C52: =1/B52 -> 0.09773670314
A53: 700 | B53: 14.31413616 | C53: 0.06986100936
A54: 1000 | B54: 17.72990138 | C54: 0.05640189297
A55: 3000 | B55: 34.27512701 | C55: 0.02917567599
A56: 7000 | B56: 56.98560244 | C56: 0.01754829215
A57: 10000 | B57: 70.58400873 | C57: 0.01416751497
A58: 25000 | B58: 122.3123541 | C58: 0.008175789004
